{"text_format":"1","workbook":"xlsx","n_sheets":4,"sheets":["inputForm","db","print","CODE"],"not_rendered":{"charts":0,"images":0,"macros":1,"external_links":0,"defined_names":43,"comments":0,"pivot_tables":0},"unopened":[],"bounds":{"document_bytes":16777216,"sheet_cells":100000,"rows_first":2000,"rows_last":500,"rows_between":2000,"halvings":0,"cell_chars":16384,"cell_head_chars":4096},"cells_cut":0,"cells_raw":0,"read":"whole","date_system":"1900"}

{"sheet":"inputForm","index":0,"n_rows":70,"n_cols":40,"rows_kept":70,"cut":false,"hidden":false,"merged":[[10,13,10,14],[12,29,12,33],[12,11,12,16],[15,11,15,14],[17,11,17,14],[23,1,23,15],[23,16,23,41],[21,36,21,38],[43,26,43,29],[39,2,39,14],[28,14,29,14],[29,2,31,13],[39,17,40,24],[34,2,34,13],[42,17,42,23],[69,5,69,7],[29,22,29,27],[32,16,32,24],[34,26,34,38],[34,16,34,25],[29,35,29,37],[43,30,43,41],[65,11,65,35],[54,7,54,17],[56,7,56,17],[57,7,57,17],[58,7,58,17],[52,24,52,38],[55,7,55,9],[55,12,55,17],[55,10,55,11],[48,16,48,41],[45,20,45,41],[68,26,68,35],[69,26,69,35],[67,26,67,35],[69,23,69,25],[69,8,69,18],[57,3,57,6],[54,3,54,6],[55,3,55,6],[56,3,56,6],[58,3,58,6],[68,5,68,7],[66,5,66,7],[66,23,66,25],[68,23,68,25],[67,8,67,18],[68,8,68,18],[0,1,0,4],[8,1,8,4],[21,31,21,35],[0,6,0,11],[6,1,6,19],[6,30,6,31],[6,23,6,28],[2,31,2,32],[10,7,10,10],[12,22,12,26],[10,22,10,25],[21,19,21,29],[19,7,19,16],[6,20,6,21],[8,14,8,36],[10,17,10,21],[4,0,4,30],[39,27,39,39],[41,35,41,37],[42,26,42,28],[42,29,42,31],[41,29,41,31],[41,26,41,28],[12,36,12,41],[26,1,27,6],[21,7,21,16],[6,34,6,39],[26,18,26,30],[26,31,26,39],[8,6,8,11],[42,2,42,14],[29,30,29,32]]}
[null,"วันที่รายงาน             ",null,null,null,null,null,null,null,null,null,null,null,null,null,null,null,null,null,null,null,null,null,null,null,null,null,null,null,null,null,null,null,null,null,"ครั้งที่รายงาน"]
[]
[null,null,null,null,null,null,null,null,null,null,null,null,null,null,null,null,null,null,null,null,null,null,null,null,null,null,null,null,null,null,null,"รหัส",null,"R"]
[null,null,null,null,null,null,null,null,null,null,null,null,null,null,null,null,null,null,null,null,null,null,null,null,null,null,null,null,null,null,null,null,null,null,"รหัสแปลงย่อย"]
["แบบฟอร์มติดตามผลการเข้าปฏิบัติการต่อพื้นที่ปลูกยางพาราในพื้นที่ป่าอนุรักษ์",null,null,null,null,null,null,null,null,null,null,null,null,null,null,null,null,null,null,null,null,null,null,null,null,null,null,null,null,null,null,null,"*** ใช้รหัสแปลงเดิมที่ได้ดำเนินการตรวจสอบแล้ว"]
[]
[null,"                                      สำนักบริหารพื้นที่อนุรักษ์ที่ ",null,null,null,null,null,null,null,null,null,null,null,null,null,null,null,null,null,null,{"$f":"VLOOKUP(AE7,CODE!B8:D28,3,FALSE)","v":2},null,"(",{"$f":"VLOOKUP(AE7,CODE!B8:C28,2,FALSE)","v":"ศรีราชา"},null,null,null,null,null,")","2A"]
[]
[null,"ประเภทพื้นที่",null,null,null,null,null,null,null,null,null,null,null,"ชื่อ ",{"$f":"VLOOKUP(AI3&AJ3&AK3&AL3,CODE!B39:C264,2,FALSE)","v":{"$error":"#N/A"}}]
[]
[null,"การใช้ที่ดิน",null,null,null,null,null," ยางพารา",null,null,null," อายุ ",null,null,null,"ปี",null,"เนื้อที่ประมาณ",null,null,null,null,null,null,null,null,"ไร่"]
[]
[null,"ที่ตั้ง",null,null,null,null," ชื่อหมู่บ้าน/ชุมชน ",null,null,null,null,null,null,null,null,null,null,"หมู่ที่",null,null,"ตำบล",null,null,null,null,null,null,"อำเภอ",null,null,null,null,null,null,"จังหวัด"]
[null,"ค่าพิกัดกลางแปลง",null,null,null,null,null,null,"  ในพื้นที่"]
[null,null,null," UTM WGS 84 Zone     "]
[null,null," UTM WGS 84 Zone     ",null,null,null,null,null,null,null,null," Easting",null,null,null,null,null,null,null,null,null,null,null,null,null,"m.E."]
[]
[null,null,null,null,null,null,null,null,null,null,null," Northing ",null,null,null,null,null,null,null,null,null,null,null,null,null,"m.N."]
[]
[null,"ผลการดำเนินการ"]
[null,null,null,null,null,null,null,null,null,null,null,null,null,null,null,null,null,null,null,null,null,null,null,null,null,null,null,null,null,null,null,null,null,null,null,null,null,4.8499999999999996]
[null,null,null,null,null,null,null,null,null,null,null,null,null,null,null,null,null,null,null,null,null,null,null,null,null,null,null,null,null,null,null,"เนื้อที่",null,null,null,null,{"$f":"W11","v":0},null,null,"ไร่"]
[]
[null,"กรณีที่อยู่ในแปลงพิสูจน์สิทธิ์ 30 มิ.ย. 41",null,null,null,null,null,null,null,null,null,null,null,null,null,null,"กรณีที่อยู่นอกแปลงพิสูจน์สิทธิ์ 30 มิ.ย. 41"]
[null,null,null,null,null,null,null,null,null,null,null,null,null,null,null,null," ผลการเข้าปฏิบัติการ"]
[]
[null,"  การดำเนินการ ",null,null,null,null,null,null,null,null,null,null,null,null,null,null,null,null,null,null,null,null,null,null,null,null,null,null,null,null,null,"ติดประกาศมาตรา22/25 ครั้งที่"]
[]
[]
[null,null,null,null,null,null,null,null,null,null,null,null,null,null,null,null,null,null,null,"เมื่อวันที่ ",null,null,null,null,null,null,null,null,"เนื้อที่",null,null,null,null,"ไร่"]
[]
[]
[null,null,null,null,null,null,null,null,null,null,null,null,null,null,null,null," ขั้นตอนการเข้าปฏิบัติการ"]
[]
[null,null,"(ชื่อผู้ครอบครอง/แจ้งการพิสูจน์สิทธิ์)",null,null,null,null,null,null,null,null,null,null,null,null,null,"สถานภาพต้นยางพารา",null,null,null,null,null,null,null,null,null,"แนวทางดำเนินการ (รื้อถอน)"]
[]
[]
[]
[]
[]
[]
[null,null,null,null,null,null,null,null,null,null,null,null,null,null,null,null,null,null,null,null,null,null,null,null,null,null,"ตัด",null,null,null,null,null,"% เหลือ",null,null,{"$f":"IF(AD42=\"\",\"\",(100-AD42))","v":""},null,null,"% "]
[null,null,"หมายเลขบัตรประชาชน 13 หลัก",null,null,null,null,null,null,null,null,null,null,null,null,null,null,null,null,null,null,null,null,null,null,null,"เนื้อที่ตัดฟัน",null,null,{"$f":"IF(AD42=\"\",\"\",((AK22*AD42)/100))","v":""},null,null,"ไร่"]
[null,null,null,null,null,null,null,null,null,null,null,null,null,null,null,null,null,null,null,null,null,null,null,null,null,null,"สาเหตุ(โปรดระบุ)"]
[]
[null,null,null,null,null,null,null,null,null,null,null,null,null,null,null,null,null,"หมายเหตุ"]
[]
[]
[null,null,null,null,null,null,null,null,null,null,null,null,null,null,null,null,"   * หากรายงานว่าหยุดกรีดยางมากกว่า 6 เดือน แล้วภายหลังตรวจสอบ พบว่า มีการกรีดยาง เจ้าหน้าที่ผู้รายงานจะต้องชี้แจงในเรื่องนี้"]
[]
[]
[null,null,null,null,null,null,null,null,null,null,null,null,null,null,null,null,null,null,null,null,null,"ภาพประกอบ"]
[null,null,null,"คดีอาญา",null,null,null,null,null,null,null,null,null,null,null,null,null,null,null,null,null,null,null,null,{"$f":"CONCATENATE(AH3,AI3,AJ3,AK3,AL3,AM3,AN3,AO3,AP3,AM4,AN4,AO4,AP4,AO1,AP1)","v":"R"},null,null,null,null,null,null,null,null,null,null,null,null,null,null,"P01"]
[]
[null,null,null,"วันที่จับกุม"]
[null,null,null,"ปจว. ข้อ",null,null,null,null,null,null,"เวลา "]
[null,null,null,"คดีอาญาที่"]
[null,null,null,"ยึดทรัพย์ที่"]
[null,null,null,"ชื่อผู้ต้องหา"]
[]
[]
[]
[]
[]
[]
[null,null,null,"ผู้รับผิดชอบ ",null,null,null,"(หน่วยงาน) "]
[null,null,null,null,null,"ลงชื่อ",null,null,null,null,null,null,null,null,null,null,null,null,null,"(ผู้ดำเนินการ)",null,null,null,"ลงชื่อ",null,null,null,null,null,null,null,null,null,null,null,null,"(ผู้รับผิดชอบพื้นที่)"]
[null,null,null,null,null,null,null," ( ",null,null,null,null,null,null,null,null,null,null,null," )",null,null,null,null,null," ( ",null,null,null,null,null,null,null,null,null,null," )"]
[null,null,null,null,null,"ตำแหน่ง",null,null,null,null,null,null,null,null,null,null,null,null,null,null,null,null,null,"ตำแหน่ง"]
[null,null,null,null,null,"วันที่",null,null,null,null,null,null,null,null,null,null,null,null,null,null,null,null,null,"วันที่"]

{"sheet":"db","index":1,"n_rows":1,"n_cols":52,"rows_kept":1,"cut":false,"hidden":false,"merged":[]}
["รหัสรวม","วันที่รายงาน","ครั้งที่","รหัสแปลง","เลขแปลงย่อย","รหัส สบอ.","จังหวัด","ประเภทพื้นที่","ชื่อพื้นที่","การใช้ที่ดิน","อายุ(ปี)","เนื้อที่(ไร่)","ชื่อหมู่บ้าน/ชุมชน","หมู่ที่","ตำบล","อำเภอ","จังหวัด","โซน","Easting","Northing ","ผลการดำเนินการ","ผลการตรวจสอบ","เอกสารสิทธิ์อื่นๆ(โปรดระบุ)","เนื้อที่","กรณีที่อยู่ในแปลงพิสูจน์สิทธิ์ 30 มิ.ย. 41","ชื่อผู้ครอบครอง/แจ้งการพิสูจน์สิทธิ์","หมายเลขบัตรประชาชน 13 หลัก","กรณีที่อยู่นอกแปลงพิสูจน์สิทธิ์ 30 มิ.ย. 41","ประกาศครั้งที่","เมื่อวันที่","เนื้อที่","สถานภาพต้นยางพารา","แนวทางดำเนินการ (รื้อถอน)","ตัด(%)","เหลือ(%)","เนื้อที่ตัดฟัน(ไร่)","สาเหตุ","วันที่จับกุม","ปจว. ข้อ","เวลา","คดีอาญาที่","ยึดทรัพย์ที่","ชื่อผู้ต้องหา","ภาพประกอบ(P01)","ผู้รับผิดชอบ(หน่วยงาน)","ผู้ดำเนินการ","ตำแหน่งผู้ดำเนินการ","วันที่","ผู้รับผิดชอบพื้นที่","ตำแหน่งผู้รับผิดชอบพื้นที่","วันที่","หมายเหตุ"]

{"sheet":"print","index":2,"n_rows":70,"n_cols":41,"rows_kept":70,"cut":false,"hidden":false,"merged":[[10,22,10,25],[8,14,8,36],[0,1,0,4],[0,6,0,11],[2,31,2,32],[6,1,6,19],[6,20,6,21],[6,23,6,28],[4,0,4,30],[8,1,8,4],[8,6,8,11],[10,7,10,10],[10,13,10,14],[10,17,10,21],[23,1,23,15],[23,16,23,41],[12,22,12,26],[12,29,12,33],[12,36,12,41],[15,11,15,14],[17,11,17,14],[19,7,19,16],[21,7,21,16],[21,19,21,29],[21,31,21,35],[21,36,21,38],[12,10,12,16],[26,1,27,6],[28,14,29,14],[29,2,31,13],[29,22,29,27],[29,30,29,32],[29,35,29,37],[26,18,26,30],[26,31,26,39],[32,16,32,24],[34,16,34,25],[34,26,34,38],[34,2,34,13],[39,2,39,14],[39,17,40,24],[39,27,39,39],[41,26,41,28],[41,29,41,31],[41,35,41,37],[42,2,42,14],[42,17,42,23],[42,26,42,28],[42,29,42,31],[65,11,65,35],[66,5,66,7],[66,23,66,25],[43,26,43,29],[43,30,43,41],[52,24,52,38],[54,3,54,6],[54,7,54,17],[55,3,55,6],[56,3,56,6],[56,7,56,17],[55,7,55,9],[55,10,55,11],[55,12,55,17],[45,20,45,41],[69,5,69,7],[69,8,69,18],[69,23,69,25],[69,26,69,35],[48,16,48,41],[54,23,63,39],[67,8,67,18],[67,26,67,35],[68,5,68,7],[68,8,68,18],[68,23,68,25],[68,26,68,35],[57,3,57,6],[57,7,57,17],[58,3,58,6],[58,7,58,17]]}
[null,"วันที่รายงาน             ",null,null,null,null,{"$f":"VLOOKUP(AH3&AI3&AJ3&AK3&AL3&AM3&AN3&AO3&AP3&AM4&AN4&AO4&AP4&AO1&AP1,db!A2:B1164,2,FALSE)","v":{"$error":"#N/A"}},null,null,null,null,null,null,null,null,null,null,null,null,null,null,null,null,null,null,null,null,null,null,null,null,null,null,null,null,"ครั้งที่รายงาน"]
[]
[null,null,null,null,null,null,null,null,null,null,null,null,null,null,null,null,null,null,null,null,null,null,null,null,null,null,null,null,null,null,null,"รหัส",null,"R"]
[null,null,null,null,null,null,null,null,null,null,null,null,null,null,null,null,null,null,null,null,null,null,null,null,null,null,null,null,null,null,null,null,null,null,"รหัสแปลงย่อย"]
["แบบฟอร์มติดตามผลการเข้าปฏิบัติการต่อพื้นที่ปลูกยางพาราในพื้นที่ป่าอนุรักษ์",null,null,null,null,null,null,null,null,null,null,null,null,null,null,null,null,null,null,null,null,null,null,null,null,null,null,null,null,null,null,null,"*** ใช้รหัสแปลงเดิมที่ได้ดำเนินการตรวจสอบแล้ว"]
[]
[null,"                                      สำนักบริหารพื้นที่อนุรักษ์ที่ ",null,null,null,null,null,null,null,null,null,null,null,null,null,null,null,null,null,null,{"$f":"VLOOKUP(CONCATENATE(AH3,AI3,AJ3,AK3,AL3,AM3,AN3,AO3,AP3,AM4,AN4,AO4,AP4,AO1,AP1),db!$A$2:$F$1495,6,FALSE)","v":{"$error":"#N/A"}},null,"(",{"$f":"VLOOKUP(AH3&AI3&AJ3&AK3&AL3&AM3&AN3&AO3&AP3&AM4&AN4&AO4&AP4&AO1&AP1,db!$A$2:$G$1495,7,FALSE)","v":{"$error":"#N/A"}},null,null,null,null,null,")"]
[]
[null,"ประเภทพื้นที่",null,null,null,null,{"$f":"VLOOKUP(CONCATENATE(AH3,AI3,AJ3,AK3,AL3,AM3,AN3,AO3,AP3,AM4,AN4,AO4,AP4,AO1,AP1),db!$A$2:$H$1495,8,FALSE)","v":{"$error":"#N/A"}},null,null,null,null,null,null,"ชื่อ ",{"$f":"VLOOKUP(CONCATENATE(AH3,AI3,AJ3,AK3,AL3,AM3,AN3,AO3,AP3,AM4,AN4,AO4,AP4,AO1,AP1),db!$A$2:$I$1495,9,FALSE)","v":{"$error":"#N/A"}}]
[]
[null,"การใช้ที่ดิน",null,null,null,null,null,"ยางพารา",null,null,null," อายุ ",null,{"$f":"VLOOKUP(CONCATENATE(AH3,AI3,AJ3,AK3,AL3,AM3,AN3,AO3,AP3,AM4,AN4,AO4,AP4,AO1,AP1),db!$A$2:$K$1495,11,FALSE)","v":{"$error":"#N/A"}},null,"ปี",null,"เนื้อที่ประมาณ",null,null,null,null,{"$f":"VLOOKUP(CONCATENATE(AH3,AI3,AJ3,AK3,AL3,AM3,AN3,AO3,AP3,AM4,AN4,AO4,AP4,AO1,AP1),db!$A$2:$L$1495,12,FALSE)","v":{"$error":"#N/A"}},null,null,null,"ไร่"]
[]
[null,"ที่ตั้ง",null,null,null," ชื่อหมู่บ้าน/ชุมชน ",null,null,null,null,{"$f":"VLOOKUP(CONCATENATE(AH3,AI3,AJ3,AK3,AL3,AM3,AN3,AO3,AP3,AM4,AN4,AO4,AP4,AO1,AP1),db!$A$2:$M$1495,13,FALSE)","v":{"$error":"#N/A"}},null,null,null,null,null,null,"หมู่ที่",null,{"$f":"VLOOKUP(CONCATENATE(AH3,AI3,AJ3,AK3,AL3,AM3,AN3,AO3,AP3,AM4,AN4,AO4,AP4,AO1,AP1),db!$A$2:$N$1495,14,FALSE)","v":{"$error":"#N/A"}},"ตำบล",null,{"$f":"VLOOKUP(CONCATENATE(AH3,AI3,AJ3,AK3,AL3,AM3,AN3,AO3,AP3,AM4,AN4,AO4,AP4,AO1,AP1),db!$A$2:$O$1495,15,FALSE)","v":{"$error":"#N/A"}},null,null,null,null,"อำเภอ",null,{"$f":"VLOOKUP(CONCATENATE(AH3,AI3,AJ3,AK3,AL3,AM3,AN3,AO3,AP3,AM4,AN4,AO4,AP4,AO1,AP1),db!$A$2:$P$1495,16,FALSE)","v":{"$error":"#N/A"}},null,null,null,null,"จังหวัด",null,{"$f":"VLOOKUP(CONCATENATE(AH3,AI3,AJ3,AK3,AL3,AM3,AN3,AO3,AP3,AM4,AN4,AO4,AP4,AO1,AP1),db!$A$2:$Q$1495,17,FALSE)","v":{"$error":"#N/A"}}]
[null,"ค่าพิกัดกลางแปลง",null,null,null,null,null,null,"  ในพื้นที่"]
[]
[null,null,null," UTM WGS 84 Zone     ",null,null,null,null,null,{"$f":"VLOOKUP(CONCATENATE(AH3,AI3,AJ3,AK3,AL3,AM3,AN3,AO3,AP3,AM4,AN4,AO4,AP4,AO1,AP1),db!$A$2:$AY$1495,18,FALSE)","v":{"$error":"#N/A"}},null," Easting",null,null,null,null,null,null,{"$f":"MID(VLOOKUP(CONCATENATE(AH3,AI3,AJ3,AK3,AL3,AM3,AN3,AO3,AP3,AM4,AN4,AO4,AP4,AO1,AP1),db!$A$2:$AY$1495,19,FALSE),1,1)","v":{"$error":"#N/A"}},{"$f":"MID(VLOOKUP(CONCATENATE(AH3,AI3,AJ3,AK3,AL3,AM3,AN3,AO3,AP3,AM4,AN4,AO4,AP4,AO1,AP1),db!$A$2:$AY$1495,19,FALSE),2,1)","v":{"$error":"#N/A"}},{"$f":"MID(VLOOKUP(CONCATENATE(AH3,AI3,AJ3,AK3,AL3,AM3,AN3,AO3,AP3,AM4,AN4,AO4,AP4,AO1,AP1),db!$A$2:$AY$1495,19,FALSE),3,1)","v":{"$error":"#N/A"}},{"$f":"MID(VLOOKUP(CONCATENATE(AH3,AI3,AJ3,AK3,AL3,AM3,AN3,AO3,AP3,AM4,AN4,AO4,AP4,AO1,AP1),db!$A$2:$AY$1495,19,FALSE),4,1)","v":{"$error":"#N/A"}},{"$f":"MID(VLOOKUP(CONCATENATE(AH3,AI3,AJ3,AK3,AL3,AM3,AN3,AO3,AP3,AM4,AN4,AO4,AP4,AO1,AP1),db!$A$2:$AY$1495,19,FALSE),5,1)","v":{"$error":"#N/A"}},{"$f":"MID(VLOOKUP(CONCATENATE(AH3,AI3,AJ3,AK3,AL3,AM3,AN3,AO3,AP3,AM4,AN4,AO4,AP4,AO1,AP1),db!$A$2:$AY$1495,19,FALSE),6,1)","v":{"$error":"#N/A"}},null,"m.E."]
[]
[null,null,null,null,null,null,null,null,null,null,null," Northing ",null,null,null,null,null,{"$f":"MID(VLOOKUP(CONCATENATE(AH3,AI3,AJ3,AK3,AL3,AM3,AN3,AO3,AP3,AM4,AN4,AO4,AP4,AO1,AP1),db!$A$2:$AY$1495,20,FALSE),1,1)","v":{"$error":"#N/A"}},{"$f":"MID(VLOOKUP(CONCATENATE(AH3,AI3,AJ3,AK3,AL3,AM3,AN3,AO3,AP3,AM4,AN4,AO4,AP4,AO1,AP1),db!$A$2:$AY$1495,20,FALSE),2,1)","v":{"$error":"#N/A"}},{"$f":"MID(VLOOKUP(CONCATENATE(AH3,AI3,AJ3,AK3,AL3,AM3,AN3,AO3,AP3,AM4,AN4,AO4,AP4,AO1,AP1),db!$A$2:$AY$1495,20,FALSE),3,1)","v":{"$error":"#N/A"}},{"$f":"MID(VLOOKUP(CONCATENATE(AH3,AI3,AJ3,AK3,AL3,AM3,AN3,AO3,AP3,AM4,AN4,AO4,AP4,AO1,AP1),db!$A$2:$AY$1495,20,FALSE),4,1)","v":{"$error":"#N/A"}},{"$f":"MID(VLOOKUP(CONCATENATE(AH3,AI3,AJ3,AK3,AL3,AM3,AN3,AO3,AP3,AM4,AN4,AO4,AP4,AO1,AP1),db!$A$2:$AY$1495,20,FALSE),5,1)","v":{"$error":"#N/A"}},{"$f":"MID(VLOOKUP(CONCATENATE(AH3,AI3,AJ3,AK3,AL3,AM3,AN3,AO3,AP3,AM4,AN4,AO4,AP4,AO1,AP1),db!$A$2:$AY$1495,20,FALSE),6,1)","v":{"$error":"#N/A"}},{"$f":"MID(VLOOKUP(CONCATENATE(AH3,AI3,AJ3,AK3,AL3,AM3,AN3,AO3,AP3,AM4,AN4,AO4,AP4,AO1,AP1),db!$A$2:$AY$1495,20,FALSE),7,1)","v":{"$error":"#N/A"}},null,"m.N."]
[]
[null,"ผลการดำเนินการ",null,null,null,null,null,{"$f":"(VLOOKUP(CONCATENATE(AH3,AI3,AJ3,AK3,AL3,AM3,AN3,AO3,AP3,AM4,AN4,AO4,AP4,AO1,AP1),db!$A$2:$AY$1495,21,FALSE))","v":{"$error":"#N/A"}}]
[]
[null,null,null,null,null,null,null,{"$f":"(VLOOKUP(CONCATENATE(AH3,AI3,AJ3,AK3,AL3,AM3,AN3,AO3,AP3,AM4,AN4,AO4,AP4,AO1,AP1),db!$A$2:$AY$1495,22,FALSE))","v":{"$error":"#N/A"}},null,null,null,null,null,null,null,null,null,null,null,{"$f":"IF(VLOOKUP(CONCATENATE(AH3,AI3,AJ3,AK3,AL3,AM3,AN3,AO3,AP3,AM4,AN4,AO4,AP4,AO1,AP1),db!$A$2:$AY$1495,23,FALSE)=0,\"-\",(VLOOKUP(CONCATENATE(AH3,AI3,AJ3,AK3,AL3,AM3,AN3,AO3,AP3,AM4,AN4,AO4,AP4,AO1,AP1),db!$A$2:$AY$1495,23,FALSE)))","v":{"$error":"#N/A"}},null,null,null,null,null,null,null,null,null,null,null,"เนื้อที่",null,null,null,null,{"$f":"IF(VLOOKUP(CONCATENATE(AH3,AI3,AJ3,AK3,AL3,AM3,AN3,AO3,AP3,AM4,AN4,AO4,AP4,AO1,AP1),db!$A$2:$AY$1495,24,FALSE)=0,\"-\",(VLOOKUP(CONCATENATE(AH3,AI3,AJ3,AK3,AL3,AM3,AN3,AO3,AP3,AM4,AN4,AO4,AP4,AO1,AP1),db!$A$2:$AY$1495,24,FALSE)))","v":{"$error":"#N/A"}},null,null,"ไร่"]
[]
[null,"กรณีที่อยู่ในแปลงพิสูจน์สิทธิ์ 30 มิ.ย. 41",null,null,null,null,null,null,null,null,null,null,null,null,null,null,"กรณีที่อยู่นอกแปลงพิสูจน์สิทธิ์ 30 มิ.ย. 41"]
[null,null,null,null,null,null,null,null,null,null,null,null,null,null,null,null," ผลการเข้าปฏิบัติการ"]
[]
[null,"  การดำเนินการ ",null,null,null,null,null,null,null,null,null,null,null,null,null,null,null,null,{"$f":"IF(VLOOKUP(CONCATENATE(AH3,AI3,AJ3,AK3,AL3,AM3,AN3,AO3,AP3,AM4,AN4,AO4,AP4,AO1,AP1),db!$A$2:$AY$1495,28,FALSE)=1,CODE!K2,IF(VLOOKUP(CONCATENATE(AH3,AI3,AJ3,AK3,AL3,AM3,AN3,AO3,AP3,AM4,AN4,AO4,AP4,AO1,AP1),db!$A$2:$AY$1495,28,FALSE)=2,CODE!K3,IF(VLOOKUP(CONCATENATE(AH3,AI3,AJ3,AK3,AL3,AM3,AN3,AO3,AP3,AM4,AN4,AO4,AP4,AO1,AP1),db!$A$2:$AY$1495,28,FALSE)=7,CODE!K4,IF(VLOOKUP(CONCATENATE(AH3,AI3,AJ3,AK3,AL3,AM3,AN3,AO3,AP3,AM4,AN4,AO4,AP4,AO1,AP1),db!$A$2:$AY$1495,28,FALSE)=3,CODE!K5,IF(VLOOKUP(CONCATENATE(AH3,AI3,AJ3,AK3,AL3,AM3,AN3,AO3,AP3,AM4,AN4,AO4,AP4,AO1,AP1),db!$A$2:$AY$1495,28,FALSE)=4,CODE!K6,IF(VLOOKUP(CONCATENATE(AH3,AI3,AJ3,AK3,AL3,AM3,AN3,AO3,AP3,AM4,AN4,AO4,AP4,AO1,AP1),db!$A$2:$AY$1495,28,FALSE)=5,CODE!K7,IF(VLOOKUP(CONCATENATE(AH3,AI3,AJ3,AK3,AL3,AM3,AN3,AO3,AP3,AM4,AN4,AO4,AP4,AO1,AP1),db!$A$2:$AY$1495,28,FALSE)=6,CODE!K8,\"-\")))))))","v":{"$error":"#N/A"}},null,null,null,null,null,null,null,null,null,null,null,null,"ติดประกาศมาตรา22/25   ครั้งที่",null,null,null,null,null,null,null,null,{"$f":"IF(VLOOKUP(CONCATENATE(AH3,AI3,AJ3,AK3,AL3,AM3,AN3,AO3,AP3,AM4,AN4,AO4,AP4,AO1,AP1),db!$A$2:$AY$1495,29,FALSE)=0,\"-\",VLOOKUP(CONCATENATE(AH3,AI3,AJ3,AK3,AL3,AM3,AN3,AO3,AP3,AM4,AN4,AO4,AP4,AO1,AP1),db!$A$2:$AY$1495,29,FALSE))","v":{"$error":"#N/A"}}]
[]
[]
[null,null,{"$f":"IF(VLOOKUP(CONCATENATE(AH3,AI3,AJ3,AK3,AL3,AM3,AN3,AO3,AP3,AM4,AN4,AO4,AP4,AO1,AP1),db!$A$2:$AY$1495,25,FALSE)=1,CODE!C32,IF(VLOOKUP(CONCATENATE(AH3,AI3,AJ3,AK3,AL3,AM3,AN3,AO3,AP3,AM4,AN4,AO4,AP4,AO1,AP1),db!$A$2:$AY$1495,25,FALSE)=2,CODE!C33,IF(VLOOKUP(CONCATENATE(AH3,AI3,AJ3,AK3,AL3,AM3,AN3,AO3,AP3,AM4,AN4,AO4,AP4,AO1,AP1),db!$A$2:$AY$1495,25,FALSE)=3,CODE!C34,IF(VLOOKUP(CONCATENATE(AH3,AI3,AJ3,AK3,AL3,AM3,AN3,AO3,AP3,AM4,AN4,AO4,AP4,AO1,AP1),db!$A$2:$AY$1495,25,FALSE)=4,CODE!C35,\"-\"))))","v":{"$error":"#N/A"}},null,null,null,null,null,null,null,null,null,null,null,null,null,null,null,null,"เมื่อวันที่ ",null,null,{"$f":"IF(VLOOKUP(CONCATENATE(AH3,AI3,AJ3,AK3,AL3,AM3,AN3,AO3,AP3,AM4,AN4,AO4,AP4,AO1,AP1),db!$A$2:$AY$1495,30,FALSE)=0,\"-\",VLOOKUP(CONCATENATE(AH3,AI3,AJ3,AK3,AL3,AM3,AN3,AO3,AP3,AM4,AN4,AO4,AP4,AO1,AP1),db!$A$2:$AY$1495,30,FALSE))","v":{"$error":"#N/A"}},null,null,null,null,null,"   เนื้อที่",null,{"$f":"IF(VLOOKUP(CONCATENATE(AH3,AI3,AJ3,AK3,AL3,AM3,AN3,AO3,AP3,AM4,AN4,AO4,AP4,AO1,AP1),db!$A$2:$AY$1495,31,FALSE)=0,\"-\",VLOOKUP(CONCATENATE(AH3,AI3,AJ3,AK3,AL3,AM3,AN3,AO3,AP3,AM4,AN4,AO4,AP4,AO1,AP1),db!$A$2:$AY$1495,31,FALSE))","v":{"$error":"#N/A"}},null,null,"ไร่"]
[]
[]
[null,null,null,null,null,null,null,null,null,null,null,null,null,null,null,null," ขั้นตอนการเข้าปฏิบัติการ"]
[]
[null,null,"(ชื่อผู้ครอบครอง/แจ้งการพิสูจน์สิทธิ์)",null,null,null,null,null,null,null,null,null,null,null,null,null,"สถานภาพต้นยางพารา",null,null,null,null,null,null,null,null,null,"แนวทางดำเนินการ (รื้อถอน)"]
[]
[]
[]
[]
[null,null,{"$f":"IF(VLOOKUP(CONCATENATE(AH3,AI3,AJ3,AK3,AL3,AM3,AN3,AO3,AP3,AM4,AN4,AO4,AP4,AO1,AP1),db!$A$2:$AY$1495,26,FALSE)=0,\"-\",(VLOOKUP(CONCATENATE(AH3,AI3,AJ3,AK3,AL3,AM3,AN3,AO3,AP3,AM4,AN4,AO4,AP4,AO1,AP1),db!$A$2:$AY$1495,26,FALSE)))","v":{"$error":"#N/A"}},null,null,null,null,null,null,null,null,null,null,null,null,null,null,{"$f":"IF(VLOOKUP(CONCATENATE(AH3,AI3,AJ3,AK3,AL3,AM3,AN3,AO3,AP3,AM4,AN4,AO4,AP4,AO1,AP1),db!$A$2:$AY$1495,32,FALSE)=1,CODE!E32,IF(VLOOKUP(CONCATENATE(AH3,AI3,AJ3,AK3,AL3,AM3,AN3,AO3,AP3,AM4,AN4,AO4,AP4,AO1,AP1),db!$A$2:$AY$1495,32,FALSE)=2,CODE!E33,IF(VLOOKUP(CONCATENATE(AH3,AI3,AJ3,AK3,AL3,AM3,AN3,AO3,AP3,AM4,AN4,AO4,AP4,AO1,AP1),db!$A$2:$AY$1495,32,FALSE)=3,CODE!E34,\"-\")))","v":{"$error":"#N/A"}},null,null,null,null,null,null,null,null,null,{"$f":"IF(VLOOKUP(CONCATENATE(AH3,AI3,AJ3,AK3,AL3,AM3,AN3,AO3,AP3,AM4,AN4,AO4,AP4,AO1,AP1),db!$A$2:$AY$1495,33,FALSE)=1,CODE!F32,IF(VLOOKUP(CONCATENATE(AH3,AI3,AJ3,AK3,AL3,AM3,AN3,AO3,AP3,AM4,AN4,AO4,AP4,AO1,AP1),db!$A$2:$AY$1495,33,FALSE)=2,CODE!F33,IF(VLOOKUP(CONCATENATE(AH3,AI3,AJ3,AK3,AL3,AM3,AN3,AO3,AP3,AM4,AN4,AO4,AP4,AO1,AP1),db!$A$2:$AY$1495,33,FALSE)=3,CODE!F34,IF(VLOOKUP(CONCATENATE(AH3,AI3,AJ3,AK3,AL3,AM3,AN3,AO3,AP3,AM4,AN4,AO4,AP4,AO1,AP1),db!$A$2:$AY$1495,33,FALSE)=4,CODE!F35,IF(VLOOKUP(CONCATENATE(AH3,AI3,AJ3,AK3,AL3,AM3,AN3,AO3,AP3,AM4,AN4,AO4,AP4,AO1,AP1),db!$A$2:$AY$1495,33,FALSE)=5,CODE!F36,\"-\")))))","v":{"$error":"#N/A"}}]
[]
[null,null,null,null,null,null,null,null,null,null,null,null,null,null,null,null,null,null,null,null,null,null,null,null,null,null,"ตัด",null,null,{"$f":"IF(VLOOKUP(CONCATENATE(AH3,AI3,AJ3,AK3,AL3,AM3,AN3,AO3,AP3,AM4,AN4,AO4,AP4,AO1,AP1),db!$A$2:$AY$1495,34,FALSE)=0,\"-\",VLOOKUP(CONCATENATE(AH3,AI3,AJ3,AK3,AL3,AM3,AN3,AO3,AP3,AM4,AN4,AO4,AP4,AO1,AP1),db!$A$2:$AY$1495,34,FALSE))","v":{"$error":"#N/A"}},null,null,"% เหลือ",null,null,{"$f":"IF(VLOOKUP(CONCATENATE(AH3,AI3,AJ3,AK3,AL3,AM3,AN3,AO3,AP3,AM4,AN4,AO4,AP4,AO1,AP1),db!$A$2:$AY$1495,35,FALSE)=0,\"-\",VLOOKUP(CONCATENATE(AH3,AI3,AJ3,AK3,AL3,AM3,AN3,AO3,AP3,AM4,AN4,AO4,AP4,AO1,AP1),db!$A$2:$AY$1495,35,FALSE))","v":{"$error":"#N/A"}},null,null,"% "]
[null,null,"หมายเลขบัตรประชาชน 13 หลัก",null,null,null,null,null,null,null,null,null,null,null,null,null,null,null,null,null,null,null,null,null,null,null,"เนื้อที่ตัดฟัน",null,null,{"$f":"IF(VLOOKUP(CONCATENATE(AH3,AI3,AJ3,AK3,AL3,AM3,AN3,AO3,AP3,AM4,AN4,AO4,AP4,AO1,AP1),db!$A$2:$AY$1495,36,FALSE)=0,\"-\",VLOOKUP(CONCATENATE(AH3,AI3,AJ3,AK3,AL3,AM3,AN3,AO3,AP3,AM4,AN4,AO4,AP4,AO1,AP1),db!$A$2:$AY$1495,36,FALSE))","v":{"$error":"#N/A"}},null,null,"ไร่"]
[null,null,null,null,null,null,null,null,null,null,null,null,null,null,null,null,null,null,null,null,null,null,null,null,null,null,"สาเหตุ(โปรดระบุ)",null,null,null,{"$f":"IF(VLOOKUP(CONCATENATE(AH3,AI3,AJ3,AK3,AL3,AM3,AN3,AO3,AP3,AM4,AN4,AO4,AP4,AO1,AP1),db!$A$2:$AY$1495,37,FALSE)=0,\"-\",VLOOKUP(CONCATENATE(AH3,AI3,AJ3,AK3,AL3,AM3,AN3,AO3,AP3,AM4,AN4,AO4,AP4,AO1,AP1),db!$A$2:$AY$1495,30,FALSE))","v":{"$error":"#N/A"}}]
[]
[null,null,{"$f":"MID(VLOOKUP(CONCATENATE(AH3,AI3,AJ3,AK3,AL3,AM3,AN3,AO3,AP3,AM4,AN4,AO4,AP4,AO1,AP1),db!$A$2:$AY$1495,27,FALSE),1,1)","v":{"$error":"#N/A"}},{"$f":"MID(VLOOKUP(CONCATENATE(AH3,AI3,AJ3,AK3,AL3,AM3,AN3,AO3,AP3,AM4,AN4,AO4,AP4,AO1,AP1),db!$A$2:$AY$1495,27,FALSE),2,1)","v":{"$error":"#N/A"}},{"$f":"MID(VLOOKUP(CONCATENATE(AH3,AI3,AJ3,AK3,AL3,AM3,AN3,AO3,AP3,AM4,AN4,AO4,AP4,AO1,AP1),db!$A$2:$AY$1495,27,FALSE),3,1)","v":{"$error":"#N/A"}},{"$f":"MID(VLOOKUP(CONCATENATE(AH3,AI3,AJ3,AK3,AL3,AM3,AN3,AO3,AP3,AM4,AN4,AO4,AP4,AO1,AP1),db!$A$2:$AY$1495,27,FALSE),4,1)","v":{"$error":"#N/A"}},{"$f":"MID(VLOOKUP(CONCATENATE(AH3,AI3,AJ3,AK3,AL3,AM3,AN3,AO3,AP3,AM4,AN4,AO4,AP4,AO1,AP1),db!$A$2:$AY$1495,27,FALSE),5,1)","v":{"$error":"#N/A"}},{"$f":"MID(VLOOKUP(CONCATENATE(AH3,AI3,AJ3,AK3,AL3,AM3,AN3,AO3,AP3,AM4,AN4,AO4,AP4,AO1,AP1),db!$A$2:$AY$1495,27,FALSE),6,1)","v":{"$error":"#N/A"}},{"$f":"MID(VLOOKUP(CONCATENATE(AH3,AI3,AJ3,AK3,AL3,AM3,AN3,AO3,AP3,AM4,AN4,AO4,AP4,AO1,AP1),db!$A$2:$AY$1495,27,FALSE),7,1)","v":{"$error":"#N/A"}},{"$f":"MID(VLOOKUP(CONCATENATE(AH3,AI3,AJ3,AK3,AL3,AM3,AN3,AO3,AP3,AM4,AN4,AO4,AP4,AO1,AP1),db!$A$2:$AY$1495,27,FALSE),8,1)","v":{"$error":"#N/A"}},{"$f":"MID(VLOOKUP(CONCATENATE(AH3,AI3,AJ3,AK3,AL3,AM3,AN3,AO3,AP3,AM4,AN4,AO4,AP4,AO1,AP1),db!$A$2:$AY$1495,27,FALSE),9,1)","v":{"$error":"#N/A"}},{"$f":"MID(VLOOKUP(CONCATENATE(AH3,AI3,AJ3,AK3,AL3,AM3,AN3,AO3,AP3,AM4,AN4,AO4,AP4,AO1,AP1),db!$A$2:$AY$1495,27,FALSE),10,1)","v":{"$error":"#N/A"}},{"$f":"MID(VLOOKUP(CONCATENATE(AH3,AI3,AJ3,AK3,AL3,AM3,AN3,AO3,AP3,AM4,AN4,AO4,AP4,AO1,AP1),db!$A$2:$AY$1495,27,FALSE),11,1)","v":{"$error":"#N/A"}},{"$f":"MID(VLOOKUP(CONCATENATE(AH3,AI3,AJ3,AK3,AL3,AM3,AN3,AO3,AP3,AM4,AN4,AO4,AP4,AO1,AP1),db!$A$2:$AY$1495,27,FALSE),12,1)","v":{"$error":"#N/A"}},{"$f":"MID(VLOOKUP(CONCATENATE(AH3,AI3,AJ3,AK3,AL3,AM3,AN3,AO3,AP3,AM4,AN4,AO4,AP4,AO1,AP1),db!$A$2:$AY$1495,27,FALSE),13,1)","v":{"$error":"#N/A"}},null,null,"หมายเหตุ",null,null,{"$f":"IF(VLOOKUP(CONCATENATE(AH3,AI3,AJ3,AK3,AL3,AM3,AN3,AO3,AP3,AM4,AN4,AO4,AP4,AO1,AP1),db!$A$2:$AZ$1495,52,FALSE)=0,\"-\",VLOOKUP(CONCATENATE(AH3,AI3,AJ3,AK3,AL3,AM3,AN3,AO3,AP3,AM4,AN4,AO4,AP4,AO1,AP1),db!$A$2:$AZ$1495,52,FALSE))","v":{"$error":"#N/A"}}]
[]
[]
[null,null,null,null,null,null,null,null,null,null,null,null,null,null,null,null,"   * หากรายงานว่าหยุดกรีดยางมากกว่า 6 เดือน แล้วภายหลังตรวจสอบ พบว่า มีการกรีดยาง เจ้าหน้าที่ผู้รายงานจะต้องชี้แจงในเรื่องนี้"]
[]
[]
[null,null,null,null,null,null,null,null,null,null,null,null,null,null,null,null,null,null,null,null,null,"ภาพประกอบ"]
[null,null,null,"คดีอาญา",null,null,null,null,null,null,null,null,null,null,null,null,null,null,null,null,null,null,null,null,{"$f":"VLOOKUP(CONCATENATE(AH3,AI3,AJ3,AK3,AL3,AM3,AN3,AO3,AP3,AM4,AN4,AO4,AP4,AO1,AP1),db!$A$2:$AY$1495,44,FALSE)","v":{"$error":"#N/A"}},null,null,null,null,null,null,null,null,null,null,null,null,null,null,null,"P01"]
[]
[null,null,null,"วันที่จับกุม",null,null,null,{"$f":"IF(VLOOKUP(CONCATENATE(AH3,AI3,AJ3,AK3,AL3,AM3,AN3,AO3,AP3,AM4,AN4,AO4,AP4,AO1,AP1),db!$A$2:$AY$1495,38,FALSE)=0,\"-\",VLOOKUP(CONCATENATE(AH3,AI3,AJ3,AK3,AL3,AM3,AN3,AO3,AP3,AM4,AN4,AO4,AP4,AO1,AP1),db!$A$2:$AY$1495,38,FALSE))","v":{"$error":"#N/A"}}]
[null,null,null,"ปจว. ข้อ",null,null,null,{"$f":"IF(VLOOKUP(CONCATENATE(AH3,AI3,AJ3,AK3,AL3,AM3,AN3,AO3,AP3,AM4,AN4,AO4,AP4,AO1,AP1),db!$A$2:$AY$1495,39,FALSE)=0,\"-\",VLOOKUP(CONCATENATE(AH3,AI3,AJ3,AK3,AL3,AM3,AN3,AO3,AP3,AM4,AN4,AO4,AP4,AO1,AP1),db!$A$2:$AY$1495,39,FALSE))","v":{"$error":"#N/A"}},null,null,"เวลา ",null,{"$f":"IF(VLOOKUP(CONCATENATE(AH3,AI3,AJ3,AK3,AL3,AM3,AN3,AO3,AP3,AM4,AN4,AO4,AP4,AO1,AP1),db!$A$2:$AY$1495,40,FALSE)=0,\"-\",VLOOKUP(CONCATENATE(AH3,AI3,AJ3,AK3,AL3,AM3,AN3,AO3,AP3,AM4,AN4,AO4,AP4,AO1,AP1),db!$A$2:$AY$1495,40,FALSE))","v":{"$error":"#N/A"}}]
[null,null,null,"คดีอาญาที่",null,null,null,{"$f":"IF(VLOOKUP(CONCATENATE(AH3,AI3,AJ3,AK3,AL3,AM3,AN3,AO3,AP3,AM4,AN4,AO4,AP4,AO1,AP1),db!$A$2:$AY$1495,41,FALSE)=0,\"-\",VLOOKUP(CONCATENATE(AH3,AI3,AJ3,AK3,AL3,AM3,AN3,AO3,AP3,AM4,AN4,AO4,AP4,AO1,AP1),db!$A$2:$AY$1495,41,FALSE))","v":{"$error":"#N/A"}}]
[null,null,null,"ยึดทรัพย์ที่",null,null,null,{"$f":"IF(VLOOKUP(CONCATENATE(AH3,AI3,AJ3,AK3,AL3,AM3,AN3,AO3,AP3,AM4,AN4,AO4,AP4,AO1,AP1),db!$A$2:$AY$1495,42,FALSE)=0,\"-\",VLOOKUP(CONCATENATE(AH3,AI3,AJ3,AK3,AL3,AM3,AN3,AO3,AP3,AM4,AN4,AO4,AP4,AO1,AP1),db!$A$2:$AY$1495,42,FALSE))","v":{"$error":"#N/A"}}]
[null,null,null,"ชื่อผู้ต้องหา",null,null,null,{"$f":"IF(VLOOKUP(CONCATENATE(AH3,AI3,AJ3,AK3,AL3,AM3,AN3,AO3,AP3,AM4,AN4,AO4,AP4,AO1,AP1),db!$A$2:$AY$1495,43,FALSE)=0,\"-\",VLOOKUP(CONCATENATE(AH3,AI3,AJ3,AK3,AL3,AM3,AN3,AO3,AP3,AM4,AN4,AO4,AP4,AO1,AP1),db!$A$2:$AY$1495,43,FALSE))","v":{"$error":"#N/A"}}]
[]
[]
[]
[]
[]
[]
[null,null,null,"ผู้รับผิดชอบ ",null,null,null,"(หน่วยงาน) ",null,null,null,{"$f":"VLOOKUP(CONCATENATE(AH3,AI3,AJ3,AK3,AL3,AM3,AN3,AO3,AP3,AM4,AN4,AO4,AP4,AO1,AP1),db!$A$2:$AY$1495,45,FALSE)","v":{"$error":"#N/A"}}]
[null,null,null,null,null,"ลงชื่อ",null,null,null,null,null,null,null,null,null,null,null,null,null,"(ผู้ดำเนินการ)",null,null,null,"ลงชื่อ",null,null,null,null,null,null,null,null,null,null,null,null,"(ผู้รับผิดชอบพื้นที่)"]
[null,null,null,null,null,null,null," ( ",{"$f":"VLOOKUP(CONCATENATE(AH3,AI3,AJ3,AK3,AL3,AM3,AN3,AO3,AP3,AM4,AN4,AO4,AP4,AO1,AP1),db!$A$2:$AY$1495,46,FALSE)","v":{"$error":"#N/A"}},null,null,null,null,null,null,null,null,null,null," )",null,null,null,null,null," ( ",{"$f":"VLOOKUP(CONCATENATE(AH3,AI3,AJ3,AK3,AL3,AM3,AN3,AO3,AP3,AM4,AN4,AO4,AP4,AO1,AP1),db!$A$2:$AY$1495,49,FALSE)","v":{"$error":"#N/A"}},null,null,null,null,null,null,null,null,null," )"]
[null,null,null,null,null,"ตำแหน่ง",null,null,{"$f":"VLOOKUP(CONCATENATE(AH3,AI3,AJ3,AK3,AL3,AM3,AN3,AO3,AP3,AM4,AN4,AO4,AP4,AO1,AP1),db!$A$2:$AY$1495,47,FALSE)","v":{"$error":"#N/A"}},null,null,null,null,null,null,null,null,null,null,null,null,null,null,"ตำแหน่ง",null,null,{"$f":"VLOOKUP(CONCATENATE(AH3,AI3,AJ3,AK3,AL3,AM3,AN3,AO3,AP3,AM4,AN4,AO4,AP4,AO1,AP1),db!$A$2:$AY$1495,50,FALSE)","v":{"$error":"#N/A"}}]
[null,null,null,null,null,"วันที่",null,null,{"$f":"VLOOKUP(CONCATENATE(AH3,AI3,AJ3,AK3,AL3,AM3,AN3,AO3,AP3,AM4,AN4,AO4,AP4,AO1,AP1),db!$A$2:$AY$1495,48,FALSE)","v":{"$error":"#N/A"}},null,null,null,null,null,null,null,null,null,null,null,null,null,null,"วันที่",null,null,{"$f":"VLOOKUP(CONCATENATE(AH3,AI3,AJ3,AK3,AL3,AM3,AN3,AO3,AP3,AM4,AN4,AO4,AP4,AO1,AP1),db!$A$2:$AY$1495,51,FALSE)","v":{"$error":"#N/A"}}]

{"sheet":"CODE","index":3,"n_rows":264,"n_cols":11,"rows_kept":264,"cut":false,"hidden":false,"merged":[[15,5,18,5],[19,5,21,5],[7,14,7,17],[10,16,10,23],[14,13,14,14],[14,17,14,20],[14,21,14,22]]}
["ยางพารา_text4","type","zone","result","list1","list2","list3","สถานภาพต้นยางพารา","line","30JUNE","UN30"]
[{"$f":"IF(inputForm!G11=1,1,0)","v":0}," ป่าอนุรักษ์",47,"ตรวจสอบพื้นที่แล้ว","อยู่ในแปลงพิสูจน์สิทธิ์ 30 มิ.ย. 41","อยู่นอกแปลงพิสูจน์สิทธิ์ 30 มิ.ย. 41","มีเอกสารสิทธิ์อื่น ๆ (โปรดระบุ)","ยังไม่เปิดกรีด","ตัดหมด ","รังวัดแปลงที่ดินแล้วเสร็จ","เข้าปฏิบัติการและดำเนินการตามมาตรา 22 แล้ว"]
[null," ป่าสงวนแห่งชาติ",48,"ยังไม่ได้ดำเนินการตรวจสอบ","ยังไม่ได้ดำเนินการตรวจสอบ",null,null,"ระหว่างให้น้ำยาง","ยังไม่ได้ดำเนินการตัด","อยู่ระหว่างการรังวัดแปลงที่ดิน","เข้าปฏิบัติการและดำเนินการตามมาตรา 25 แล้ว"]
[null," พื้นที่อื่นๆ",null,null,null,null,null,"หยุดกรีดยางมากกว่า 6 เดือน","อัตราการตัดฟัน","ตรวจสอบการครอบครองแล้วเสร็จ","เข้าปฏิบัติการตาม พรบ. ป่าไม้ พ.ศ. 2484"]
[null,null,null,null,null,null,null,null,"ชักลากออกมาใช้ประโยชน์","อยู่ระหว่างตรวจสอบการครอบครอง","ยังไม่เข้าปฏิบัติการ"]
[null,null,null,null,null,null,null,null,"ไม่ตัดปล่อยให้คืนสภาพเป็นป่า",null,"ราษฎรยินดีส่งคืนพื้นที่อย่างไม่มีเงื่อนไข"]
[null,"paro_code","paro",null,null,null,null,null,null,null,"ไม่มีการดำเนินทางคดี"]
[null,"1A","ปราจีนบุรี",1,null,"กรณีที่อยู่ในแปลงพิสูจน์สิทธิ์ 30 มิ.ย. 41",{"$f":"IF(inputForm!H20=CODE!D2,IF(inputForm!H22=CODE!E2,IF(inputForm!C30=CODE!J2,1,\"\")&IF(inputForm!C30=J3,2,\"\")&IF(inputForm!C30=J4,3,\"\")&IF(inputForm!C30=J5,4,\"\"),0),0)","v":0},"manage",null,null,"รอผลคดี"]
[null,"1B","สาขาสระบุรี",1,null,"กรณีที่อยู่นอกแปลงพิสูจน์สิทธิ์ 30 มิ.ย. 41",{"$f":"IF(inputForm!H20=CODE!D2,IF(inputForm!H22=F2,IF(inputForm!S27=K2,1,IF(inputForm!S27=K3,2,IF(inputForm!S27=K4,7,IF(inputForm!S27=K5,3,IF(inputForm!S27=K6,4,IF(inputForm!S27=K7,5,IF(inputForm!S27=K8,6,0))))))),\"\"),\"-\")","v":"-"},"ผลการเข้าปฏิบัติการ"]
[null,"2A","ศรีราชา",2,null,"(ชื่อผู้ครอบครอง/แจ้งการพิสูจน์สิทธิ์)",{"$f":"IF(inputForm!H22=E2,inputForm!C40,\"-\")","v":"-"},"name_code"]
[null,"3A","บ้านโป่ง",3,null,null,{"$f":"inputForm!C46&inputForm!D46&inputForm!E46&inputForm!F46&inputForm!G46&inputForm!H46&inputForm!I46&inputForm!J46&inputForm!K46&inputForm!L46&inputForm!M46&inputForm!N46&inputForm!O46","v":""},"code"]
[null,"3B","สาขาเพชรบุรี",3,null,"หมายเลขบัตรประชาชน 13 หลัก",{"$f":"IF(inputForm!H22=E2,G11,\"\")","v":""},"code"]
[null,"4A","สุราษฎร์ธานี",4,null,"แนวทางดำเนินการ (รื้อถอน)",{"$f":"IF(inputForm!H20=CODE!D2,IF(inputForm!AB40=CODE!I2,1,IF(inputForm!AB40=CODE!I3,2,IF(inputForm!AB40=_2,3,IF(inputForm!AB40=CODE!I5,4,IF(inputForm!AB40=I6,5,\"-\"))))),0)","v":0},"line"]
[null,"5A","นครศรีธรรมราช",5,null,"สถานภาพต้นยางพารา",{"$f":"IF(inputForm!H20=CODE!D2,IF(inputForm!R40=\"ยังไม่เปิดกรีด\",1,IF(inputForm!R40=\"ระหว่างให้น้ำยาง\",2,IF(inputForm!R40=H4,3,\"-\"))),0)","v":0},"สถานภาพต้นยางพารา"]
[null,"6A","สงขลา",6,null,"ตรวจสอบพื้นที่แล้ว",{"$f":"IF(inputForm!H20=D2,inputForm!AK22,0)","v":0},"เนื้อที่1 area1"]
[null,"6B","สาขาปัตตานี",6,null,"แนวทางดำเนินการ (รื้อถอน)",{"$f":"IF(inputForm!H20=D2,IF(inputForm!AB40=CODE!I2,100,IF(inputForm!AB40=_2,inputForm!AD42,0)),0)","v":0},"ตัด"]
[null,"7A","นครราชสีมา",7,null,null,{"$f":"IF(inputForm!H20=D2,IF(inputForm!AB40=CODE!I2,inputForm!AD43,IF(inputForm!AB40=_2,inputForm!AD43,0)),0)","v":0},"เนื้อที่3 area3"]
[null,"8A","ขอนแก่น",8,null,null,{"$f":"IF(inputForm!AB40=CODE!I2,0,IF(inputForm!AB40=_2,inputForm!AJ42,0))","v":0},"เหลือ"]
[null,"9A","อุบลราชธานี",9,null,null,{"$f":"inputForm!AE44","v":0},"สาเหตุ"]
[null,"10A","อุดรธานี",10,null,"ผลการเข้าปฏิบัติการ",{"$f":"IF(inputForm!H22=F2,IF(inputForm!S27=K2,inputForm!AO27,IF(inputForm!S27=K4,inputForm!AO27,\"-\")),\"-\")","v":"-"},"ครั้งที่ text20"]
[null,"11A","พิษณุโลก",11,null,null,{"$f":"IF(inputForm!H22=F2,IF(inputForm!S27=K2,inputForm!W30,IF(inputForm!S27=K3,inputForm!W30,\"-\")),\"-\")","v":"-"},"ประกาศ text21"]
[null,"12A","นครสวรรค์",12,null,null,{"$f":"IF(inputForm!H22=F2,IF(inputForm!S27=K2,inputForm!AE30,IF(inputForm!S27=K4,inputForm!AE30,0)),0)","v":0},"เนื้อที่2 area2"]
[null,"13A","แพร่",13]
[null,"13B","สาขาลำปาง",13]
[null,"14A","ตาก",14]
[null,"15A","เชียงราย",15]
[null,"16A","เชียงใหม่",16]
[null,"16B","สาขาแม่สะเรียง",16]
[]
[]
["รหัส","result","กรณีที่อยู่ในแปลงพิสูจน์สิทธิ์ 30 มิ.ย. 41","กรณีที่อยู่นอกแปลงพิสูจน์สิทธิ์ 30 มิ.ย. 41","สถานภาพต้นยางพารา","line"]
[1,"ตรวจสอบพื้นที่แล้ว","รังวัดแปลงที่ดินแล้วเสร็จ","เข้าปฏิบัติการและดำเนินการตามมาตรา 22 แล้ว","ยังไม่เปิดกรีด","ตัดหมด "]
[2,"ยังไม่ได้ดำเนินการตรวจสอบ","อยู่ระหว่างการรังวัดแปลงที่ดิน","เข้าปฏิบัติการและดำเนินการตามมาตรา 25 แล้ว","ระหว่างให้น้ำยาง","ยังไม่ได้ดำเนินการตัด"]
[3,null,"ตรวจสอบการครอบครองแล้วเสร็จ","เข้าปฏิบัติการตาม พรบ. ป่าไม้ พ.ศ. 2484","หยุดกรีดยางมากกว่า 6 เดือน","อัตราการตัดฟัน"]
[4,null,"อยู่ระหว่างตรวจสอบการครอบครอง","ยังไม่เข้าปฏิบัติการ",null,"ชักลากออกมาใช้ประโยชน์"]
[5,null,null,"ราษฎรยินดีส่งคืนพื้นที่อย่างไม่มีเงื่อนไข",null,"ไม่ตัดปล่อยให้คืนสภาพเป็นป่า"]
[6,null,null,"ไม่มีการดำเนินทางคดี"]
[null,"รหัสพื้นที่","ชื่อพื้นที่ป่าอนุรักษ์","รอผลคดี"]
[null,"1001","อุทยานแห่งชาติเขาใหญ่"]
[null,"1003","อุทยานแห่งชาติทุ่งแสลงหลวง"]
[null,"1005","อุทยานแห่งชาติน้ำหนาว"]
[null,"1007","อุทยานแห่งชาติภูพาน"]
[null,"1009","อุทยานแห่งชาติเขาหลวง"]
[null,"1010","อุทยานแห่งชาติดอยขุนตาล"]
[null,"1011","อุทยานแห่งชาติน้ำตกพลิ้ว"]
[null,"1012","อุทยานแห่งชาติเอราวัณ"]
[null,"1013","อุทยานแห่งชาติเขาชะเมา-เขาวง"]
[null,"1014","อุทยานแห่งชาติเขาคิชฌกูฎ"]
[null,"1016","อุทยานแห่งชาติภูเรือ"]
[null,"1018","อุทยานแห่งชาติรามคำแหง"]
[null,"1019","อุทยานแห่งชาติไทรโยค"]
[null,"1020","อุทยานแห่งชาติทะเลบัน"]
[null,"1022","อุทยานแห่งชาติเขาสก"]
[null,"1023","อุทยานแห่งชาติตาดโตน"]
[null,"1024","อุทยานแห่งชาติดอยสุเทพ-ปุย"]
[null,"1025","อุทยานแห่งชาติอ่าวพังงา"]
[null,"1026","อุทยานแห่งชาติศรีสัชนาลัย"]
[null,"1028","อุทยานแห่งชาติแก่งกระจาน"]
[null,"1029","อุทยานแห่งชาติเขาพนมเบญจา"]
[null,"1032","อุทยานแห่งชาติสิรินาถ"]
[null,"1033","อุทยานแห่งชาติแก่งตะนะ"]
[null,"1036","อุทยานแห่งชาติหาดเจ้าไหม"]
[null,"1039","อุทยานแห่งชาติเขื่อนศรีนครินทร์"]
[null,"1040","อุทยานแห่งชาติทับลาน"]
[null,"1041","อุทยานแห่งชาติปางสีดา"]
[null,"1042","อุทยานแห่งชาติเขาปู่-เขาย่า"]
[null,"1045","อุทยานแห่งชาติหมู่เกาะช้าง"]
[null,"1046","อุทยานแห่งชาติแหลมสน"]
[null,"1047","อุทยานแห่งชาติหาดนพรัตน์ธารา-หมู่เกาะพีพี"]
[null,"1049","อุทยานแห่งชาติหมู่เกาะเภตรา"]
[null,"1050","อุทยานแห่งชาติภูเก้า-ภูพานคำ"]
[null,"1051","อุทยานแห่งชาติแม่ยม"]
[null,"1052","อุทยานแห่งชาติเขาลำปี-หาดท้ายเหมือง"]
[null,"1053","อุทยานแห่งชาติภูจอง-นายอย"]
[null,"1054","อุทยานแห่งชาติแม่วงก์"]
[null,"1055","อุทยานแห่งชาติน้ำตกชาติตระการ"]
[null,"1056","อุทยานแห่งชาติศรีพังงา"]
[null,"1057","อุทยานแห่งชาติภูผายล"]
[null,"1058","อุทยานแห่งชาติแจ้ซ้อน"]
[null,"1060","อุทยานแห่งชาติศรีลานนา"]
[null,"1061","อุทยานแห่งชาติดอยหลวง"]
[null,"1062","อุทยานแห่งชาติหมู่เกาะลันตา"]
[null,"1063","อุทยานแห่งชาติคลองวังเจ้า"]
[null,"1064","อุทยานแห่งชาติน้ำตกโยง"]
[null,"1065","อุทยานแห่งชาติเขาน้ำค้าง"]
[null,"1066","อุทยานแห่งชาติเขาหลัก-ลำรู่"]
[null,"1067","อุทยานแห่งชาติเขาแหลม"]
[null,"1069","อุทยานแห่งชาติแก่งกรุง"]
[null,"1070","อุทยานแห่งชาติน้ำตกห้วยยาง"]
[null,"1071","อุทยานแห่งชาติภูเวียง"]
[null,"1072","อุทยานแห่งชาติภูผาม่าน"]
[null,"1073","อุทยานแห่งชาติใต้ร่มเย็น"]
[null,"1074","อุทยานแห่งชาติผาแต้ม"]
[null,"1075","อุทยานแห่งชาติภูสระดอกบัว"]
[null,"1077","อุทยานแห่งชาติไทรทอง"]
[null,"1079","อุทยานแห่งชาติภูสวนทราย"]
[null,"1080","อุทยานแห่งชาติห้วยน้ำดัง"]
[null,"1081","อุทยานแห่งชาติขุนแจ"]
[null,"1082","อุทยานแห่งชาติตาพระยา"]
[null,"1083","อุทยานแห่งชาติเขาพระวิหาร"]
[null,"1084","อุทยานแห่งชาติลำน้ำน่าน"]
[null,"1085","อุทยานแห่งชาติธารโบกขรณี"]
[null,"1086","อุทยานแห่งชาติพุเตย"]
[null,"1088","อุทยานแห่งชาติบางลาง"]
[null,"1089","อุทยานแห่งชาติหมู่เกาะชุมพร"]
[null,"1090","อุทยานแห่งชาติกุยบุรี"]
[null,"1091","อุทยานแห่งชาติลำน้ำกระบุรี"]
[null,"1093","อุทยานแห่งชาติน้ำตกหงาว"]
[null,"1094","อุทยานแห่งชาติดอยภูคา"]
[null,"1095","อุทยานแห่งชาติน้ำตกสี่ขีด"]
[null,"1096","อุทยานแห่งชาติบูโด-สุไหงปาดี"]
[null,"1097","อุทยานแห่งชาติดอยฟ้าห่มปก"]
[null,"1098","อุทยานแห่งชาติภูซาง"]
[null,"1099","อุทยานแห่งชาติผาแดง"]
[null,"1100","อุทยานแห่งชาติน้ำพอง"]
[null,"1102","อุทยานแห่งชาติคลองพนม"]
[null,"1104","อุทยานแห่งชาติศรีน่าน"]
[null,"1105","อุทยานแห่งชาติป่าหินงาม"]
[null,"1106","อุทยานแห่งชาติแม่จริม"]
[null,"1108","อุทยานแห่งชาติภูแลนคา"]
[null,"1109","อุทยานแห่งชาติภูสอยดาว"]
[null,"1110","อุทยานแห่งชาติน้ำตกทรายขาว"]
[null,"1113","อุทยานแห่งชาติเขานัน"]
[null,"1114","อุทยานแห่งชาติทองผาภูมิ"]
[null,"1115","อุทยานแห่งชาติขุนพะวอ"]
[null,"1116","อุทยานแห่งชาติถ้ำปลา-น้ำตกผาเสื่อ"]
[null,"1117","อุทยานแห่งชาติภูลังกา"]
[null,"1118","อุทยานแห่งชาติภูผาเหล็ก"]
[null,"1119","อุทยานแห่งชาติหมู่เกาะระนอง"]
[null,"1120","อุทยานแห่งชาติแม่ปืม"]
[null,"1121","อุทยานแห่งชาติน้ำตกคลองแก้ว"]
[null,"1122","อุทยานแห่งชาติเขาสิบห้าชั้น"]
[null,"1123","อุทยานแห่งชาติลำคลองงู"]
[null,"1124","อุทยานแห่งชาติเฉลิมพระเกียรติไทยประจัน"]
[null,"1125","อุทยานแห่งชาติเขาค้อ"]
[null,"1127","อุทยานแห่งชาติดอยภูนาง"]
[null,"2001","เขตรักษาพันธุ์สัตว์ป่าสลักพระ"]
[null,"2002","เขตรักษาพันธุ์สัตว์ป่าคลองนาคา"]
[null,"2003","เขตรักษาพันธุ์สัตว์ป่าภูเขียว"]
[null,"2004","เขตรักษาพันธุ์สัตว์ป่าเขาสอยดาว"]
[null,"2005","เขตรักษาพันธุ์สัตว์ป่าห้วยขาแข้ง"]
[null,"2006","เขตรักษาพันธุ์สัตว์ป่าลุ่มน้ำปาย"]
[null,"2007","เขตรักษาพันธุ์สัตว์ป่าทุ่งใหญ่นเรศวร"]
[null,"2008","เขตรักษาพันธุ์สัตว์ป่าเขาเขียว-เขาชมภู่"]
[null,"2009","เขตรักษาพันธุ์สัตว์ป่าคลองแสง"]
[null,"2010","เขตรักษาพันธุ์สัตว์ป่าภูหลวง"]
[null,"2011","เขตรักษาพันธุ์สัตว์ป่าภูวัว"]
[null,"2012","เขตรักษาพันธุ์สัตว์ป่าเขาบรรทัด"]
[null,"2013","เขตรักษาพันธุ์สัตว์ป่ายอดโดม"]
[null,"2014","เขตรักษาพันธุ์สัตว์ป่าเขาอ่างฤาไน"]
[null,"2015","เขตรักษาพันธุ์สัตว์ป่าภูเมี่ยงและภูทอง"]
[null,"2016","เขตรักษาพันธุ์สัตว์ป่าโตนงาช้าง"]
[null,"2017","เขตรักษาพันธุ์สัตว์ป่าแม่น้ำภาชี"]
[null,"2019","เขตรักษาพันธุ์สัตว์ป่าเชียงดาว"]
[null,"2021","เขตรักษาพันธุ์สัตว์ป่าพนมดงรัก"]
[null,"2022","เขตรักษาพันธุ์สัตว์ป่าดอยผาเมือง"]
[null,"2023","เขตรักษาพันธุ์สัตว์ป่าคลองพระยา"]
[null,"2024","เขตรักษาพันธุ์สัตว์ป่าดอยผาช้าง"]
[null,"2025","เขตรักษาพันธุ์สัตว์ป่าเขาสนามเพรียง"]
[null,"2030","เขตรักษาพันธุ์สัตว์ป่าอุ้มผาง"]
[null,"2031","เขตรักษาพันธุ์สัตว์ป่าภูสีฐาน"]
[null,"2032","เขตรักษาพันธุ์สัตว์ป่าห้วยศาลา"]
[null,"2033","เขตรักษาพันธุ์สัตว์ป่าเฉลิมพระเกียรติสมเด็จพระเทพรัตนราชสุดาฯ"]
[null,"2034","เขตรักษาพันธุ์สัตว์ป่าคลองยัน"]
[null,"2035","เขตรักษาพันธุ์สัตว์ป่าเขาประ-บางคราม"]
[null,"2036","เขตรักษาพันธุ์สัตว์ป่าอุทยานเสด็จในกรม-กรมหลวงชุมพร ด้านทิศเหนือ"]
[null,"2037","เขตรักษาพันธุ์สัตว์ป่าอุทยานเสด็จในกรม-กรมหลวงชุมพร ด้านทิศใต้"]
[null,"2038","เขตรักษาพันธุ์สัตว์ป่าห้วยทับทัน-ห้วยสำราญ"]
[null,"2039","เขตรักษาพันธุ์สัตว์ป่าทุ่งระยะ-นาสัก"]
[null,"2040","เขตรักษาพันธุ์สัตว์ป่าฮาลา-บาลา"]
[null,"2042","เขตรักษาพันธุ์สัตว์ป่าดงใหญ่"]
[null,"2043","เขตรักษาพันธุ์สัตว์ป่าตะเบาะ-ห้วยใหญ่"]
[null,"2044","เขตรักษาพันธุ์สัตว์ป่าเวียงลอ"]
[null,"2045","เขตรักษาพันธุ์สัตว์ป่าแม่จริม"]
[null,"2046","เขตรักษาพันธุ์สัตว์ป่าคลองเครือหวาย"]
[null,"2047","เขตรักษาพันธุ์สัตว์ป่าควนแม่ยายหม่อน"]
[null,"2050","เขตรักษาพันธุ์สัตว์ป่าลำน้ำน่านฝั่งขวา"]
[null,"2053","เขตรักษาพันธุ์สัตว์ป่าผาผึ้ง"]
[null,"2054","เขตรักษาพันธุ์สัตว์ป่าถ้ำเจ้าราม"]
[null,"2055","เขตรักษาพันธุ์สัตว์ป่าน้ำปาด"]
[null,"2056","เขตรักษาพันธุ์สัตว์ป่าโตนปริวรรต"]
[null,"2057","เขตรักษาพันธุ์สัตว์ป่าภูค้อและภูกระแต"]
[null,"2058","เขตรักษาพันธุ์สัตว์ป่าบุณฑริก-ยอดมน"]
[null,"3002","เขตห้ามล่าสัตว์ป่าป่าพรุ"]
[null,"3006","เขตห้ามล่าสัตว์ป่าถ้ำละว้า-ถ้ำดาวดึงส์"]
[null,"3007","เขตห้ามล่าสัตว์ป่าทะเลสาบ"]
[null,"3008","เขตห้ามล่าสัตว์ป่าเขาท่าเพชร"]
[null,"3011","เขตห้ามล่าสัตว์ป่าหมู่เกาะลิบง"]
[null,"3012","เขตห้ามล่าสัตว์ป่าเขาน้ำพราย"]
[null,"3013","เขตห้ามล่าสัตว์ป่าเขาพระแทว"]
[null,"3021","เขตห้ามล่าสัตว์ป่าทะเลน้อย"]
[null,"3022","เขตห้ามล่าสัตว์ป่าป่ากราด"]
[null,"3023","เขตห้ามล่าสัตว์ป่าบึงโขงหลง"]
[null,"3027","เขตห้ามล่าสัตว์ป่าคลองลำชาน"]
[null,"3033","เขตห้ามล่าสัตว์ป่าเขาปะช้าง-แหลมขาน"]
[null,"3036","เขตห้ามล่าสัตว์ป่าพรุค้างคาว"]
[null,"3041","เขตห้ามล่าสัตว์ป่าเขาเหรง"]
[null,"3042","เขตห้ามล่าสัตว์ป่าถ้ำผาน้ำทิพย์"]
[null,"3043","เขตห้ามล่าสัตว์ป่าลำปาว"]
[null,"3044","เขตห้ามล่าสัตว์ป่าหนองทุ่งทอง"]
[null,"3049","เขตห้ามล่าสัตว์ป่าเขาน้อย-เขาประดู่"]
[null,"3050","เขตห้ามล่าสัตว์ป่าถ้ำประทุน"]
[null,"3054","เขตห้ามล่าสัตว์ป่าคุ้งกระเบน"]
[null,"3055","เขตห้ามล่าสัตว์ป่าทุ่งทะเล"]
[null,"3056","เขตห้ามล่าสัตว์ป่าหนองปลักพระยาและเขาระยาบังสา"]
[null,"3059","เขตห้ามล่าสัตว์ป่าทะเลหลวง"]
[null,"3065","เขตห้ามล่าสัตว์ป่าลำนางรอง"]
[null,"3067","เขตห้ามล่าสัตว์ป่าบ่อล้อ"]
[null,"4002","วนอุทยานต้นสักใหญ่"]
[null,"4007","วนอุทยานสระนางมโนราห์"]
[null,"4015","วนอุทยานภูพระ"]
[null,"4016","วนอุทยานน้ำตกบ๋าหลวง"]
[null,"4017","วนอุทยานน้ำตกรามัญ"]
[null,"4018","วนอุทยานเขาแหลมสิงห์"]
[null,"4019","วนอุทยานวังสามหมอ"]
[null,"4028","วนอุทยานหริรักษ์"]
[null,"4033","วนอุทยานดงบังอี่"]
[null,"4034","วนอุทยานน้ำตกผาหลวง"]
[null,"4035","วนอุทยานควนเขาวัง"]
[null,"4037","วนอุทยานภูพระบาทบัวบก"]
[null,"4039","วนอุทยานภูผาล้อม"]
[null,"4040","วนอุทยานภูบ่อบิด"]
[null,"4043","วนอุทยานภูสิงห์-ภูผาผึ้ง"]
[null,"4044","วนอุทยานภูผาแดง"]
[null,"4048","วนอุทยานน้ำตกเขาเจ้าบ่อทอง"]
[null,"4051","วนอุทยานน้ำตกพ่าน"]
[null,"4054","วนอุทยานบ่อน้ำร้อนกันตัง"]
[null,"4062","วนอุทยานเมืองเก่าชัยบุรี"]
[null,"4065","วนอุทยานน้ำตกตาดควัน"]
[null,"4068","วนอุทยานผางาม"]
[null,"4069","วนอุทยานดอยพระบาท"]
[null,"4072","วนอุทยานขุนน้ำหยาบ"]
[null,"4073","วนอุทยานถ้ำผาแล"]
[null,"4075","วนอุทยานน้ำตกห้วยตาดทอง"]
[null,"4076","วนอุทยานภูชมดาว"]
[null,"4082","วนอุทยานร่องคำหลวง"]
[null,"4083","วนอุทยานริมโขง"]
[null,"4084","วนอุทยานห้วยทรายมาน"]
[null,"4092","วนอุทยานถ้ำสิงห์"]
[null,"4096","วนอุทยานภูเขาสวนกวาง"]
[null,"4097","วนอุทยานภูผาแด่น"]
[null,"4102","วนอุทยานน้ำตกน้ำมิน"]
[null,"4110","วนอุทยานห้วยน้ำช้าง"]
[null,"4114","วนอุทยานเขาพลึง-บ้านด่าน"]
[null,"4119","วนอุทยานน้ำตกแม่เฉย"]
[null,"9103","เตรียมการอุทยานแห่งชาติดอยเวียงผา"]
[null,"9110","เตรียมการอุทยานแห่งชาติแก่งเจ็ดแคว"]
[null,"9112","เตรียมการอุทยานแห่งชาติแม่เงา"]
[null,"9116","เตรียมการอุทยานแห่งชาติถ้ำสะเกิน"]
[null,"9121","เตรียมการอุทยานแห่งชาตินันทบุรี"]
[null,"9122","เตรียมการอุทยานแห่งชาติลำน้ำกก"]
[null,"9136","เตรียมการอุทยานแห่งชาตินายูง-น้ำโสม"]
[null,"9139","เตรียมการอุทยานแห่งชาติสันกาลาคีรี"]
[null,"9140","เตรียมการอุทยานแห่งชาติน้ำตกซีโป"]
[null,"9141","เตรียมการอุทยานแห่งชาติอ่าวมะนาว - เขาตันหยง"]
[null,"9143","เตรียมการอุทยานแห่งชาติธารเสด็จ - เกาะพะงัน"]
[null,"9145","เตรียมการอุทยานแห่งชาติหาดขนอม - หมู่เกาะทะเลใต้"]
[null,"9204","เตรียมการเขตรักษาพันธุ์สัตว์ป่ากระทูน"]
[null,"9104","เตรียมการอุทยานแห่งชาติถ้ำผาไท"]
[null,"9304","เตรียมการเขตห้ามล่าสัตว์ป่าเขาวังกล้วย"]
[null,"9306","เตรียมการเขตห้ามล่าสัตว์ป่าคลองม่วงกลวง"]
[null,"9309","เตรียมการเขตห้ามล่าสัตว์ป่านาตาขวัญ"]
[null,"9311","เตรียมการเขตห้ามล่าสัตว์ป่าภูโน"]
[null,"9301","เตรียมการเขตห้ามล่าสัตว์ป่าเขาเขียว-เขาสว่าง"]